[Event "44th Chess Olympiad Open 2022"]
[Site "Chennai"]
[Date "2022.08.07"]
[Round "9.48"]
[White "Thing, Bibek"]
[Black "Sanchez Alvarez, Roberto Carlos"]
[Result "1/2-1/2"]
[WhiteElo "2260"]
[BlackElo "2431"]
[Annotator "TA"]
[PlyCount "76"]
[EventDate "2022.??.??"]
[TimeControl "60"]

{[%evp 15,76,0,2,-34,-29,-58,-57,-48,-45,-68,-66,-68,-70,-73,-54,-117,-94,-117,
-117,-118,-103,-160,-158,-154,-170,-149,-159,-159,-134,-218,-185,-291,-197,
-220,0,-288,0,-222,-193,-355,-275,-250,-225,-363,-281,-408,-160,-153,0,-413,0,
-134,0,-402,-391,-368,-259,-257,0,-322,0,-239,0]} 1. e4 {[%emt 0:00:31]} c5 {
[%emt 0:00:11]} 2. Nf3 {[%emt 0:00:10]} Nc6 {[%emt 0:00:07]} 3. Bb5 {[%emt 0:
00:00]} g6 {[%emt 0:00:11]} 4. O-O {[%emt 0:01:10]} Bg7 {[%emt 0:00:10]} 5.
Bxc6 {[%emt 0:00:39]} bxc6 {[%emt 0:06:45]} 6. Nc3 {[%emt 0:06:07]} e5 {
[%emt 0:04:12]} 7. d3 {[%emt 0:00:54]} Ne7 {[%emt 0:01:52]} 8. Be3 {[%emt 0:00:
00]} d6 {[%emt 0:00:12]} 9. Qd2 {[%emt 0:00:10] B31: Sicilian: 2...Nc6 3 Bb5
g6.} h6 {[%emt 0:00:09]} 10. Ne1 {[%emt 0:06:20] [#]} Rb8 $146 {[%emt 0:04:49]}
({Predecessor:} 10... g5 11. a3 a5 12. f3 f5 13. exf5 Nxf5 14. Bf2 O-O 15. Ne4
Nd4 16. Qd1 Ba6 {½-½ (90) Vedmediuc,S (2414)-Maze,S (2579) Budva 2009}) 11.
Na4 {[%emt 0:08:12] Black is slightly better.} f5 {[%emt 0:13:51][%cal Yf7f5,
Yf5f4]} 12. f3 {[%emt 0:01:31]} f4 {[%emt 0:09:42]} 13. Bf2 {[%emt 0:00:00]} g5
$36 {[%emt 0:00:38] Black is more active.} 14. c3 {[%emt 0:02:19]} Ng6 {
[%emt 0:01:27]} 15. Nc2 {[%emt 0:10:45]} (15. b4 $15) 15... g4 $17 {[%emt 0:19:
14]} 16. fxg4 {[%emt 0:01:12]} Qg5 {[%emt 0:07:58]} 17. Ne1 {[%emt 0:02:26]}
Bxg4 {[%emt 0:00:37]} ({Not} 17... Qxg4 18. b4 $15) 18. b3 {[%emt 0:04:08]} ({
White should play} 18. a3) 18... O-O {[%emt 0:02:01]} 19. Nb2 {[%emt 0:04:22]}
Rbd8 {[%emt 0:01:02]} 20. Kh1 {[%emt 0:03:33]} Qh5 {[%emt 0:05:38]} 21. Bg1 {
[%emt 0:05:46]} Nh4 {[%emt 0:02:58]} 22. Nd1 {[%emt 0:00:00]} (22. Bf2 $17)
22... Rd7 {[%emt 0:04:12]} 23. Bf2 {[%emt 0:08:07]} (23. h3 $142) 23... Ng6 {
[%emt 0:00:34]} 24. Bg1 {[%emt 0:01:14]} Nh4 {[%emt 0:00:00]} 25. Bf2 $1 {
[%emt 0:00:04]} Ng6 {[%emt 0:01:10]} 26. Bg1 $1 {[%emt 0:00:00]} d5 {[%emt 0:
00:11] [#] ...dxe4 is the strong threat.} 27. exd5 {[%emt 0:00:00]} (27. Bxc5
dxe4 28. Bxf8 Nxf8 29. Nb2) 27... cxd5 {[%emt 0:00:32]} 28. Bxc5 {[%emt 0:00:
54]} Rc8 {[%emt 0:01:20]} 29. Bg1 {[%emt 0:06:37]} (29. d4 $142) 29... e4 {
[%emt 0:00:17]} 30. Rc1 {[%emt 0:02:08]} (30. Bd4 $142) 30... Be2 $2 {[%emt 0:
06:48] This bishop pair is nice.} (30... Be5 $19 {has better winning chances.}
31. d4 Bd6) 31. Rf2 {[%emt 0:01:12]} Bg4 {[%emt 0:01:29]} (31... Bxd1 $17 32.
Qxd1 Qxd1 33. Rxd1 e3) 32. Rf1 $1 $19 {[%emt 0:02:27]} Be2 $2 {[%emt 0:00:22]}
(32... Be5 $19 {is more deadly.} 33. d4 Bd6) 33. Rf2 $17 {[%emt 0:00:03]} Bg4 {
[%emt 0:01:07]} (33... Bxd1 $17 34. Qxd1 Qxd1 35. Rxd1 e3) 34. Rf1 $1 $19 {
[%emt 0:00:02]} Re8 {[%emt 0:02:45]} 35. d4 {[%emt 0:02:20]} Be2 {[%emt 0:00:
46]} 36. Rf2 {[%emt 0:00:19]} Bg4 {[%emt 0:00:00] [#] Strongly threatening ...
e3.} 37. Rf1 $1 {[%emt 0:00:53]} Be2 {[%emt 0:00:00]} 38. Rf2 {[%emt 0:00:01]}
Bg4 $2 {[%emt 0:00:52] Weighted Error Value: White=0.24 (precise) /Black=0.78}
(38... Ba6 $19 39. Qb2 Rde7) 1/2-1/2

[Event "44th Chess Olympiad Open 2022"]
[Site "Chennai"]
[Date "2022.08.07"]
[Round "9.48"]
[White "Leon Archibaldo, Orlando Andres"]
[Black "Jaiswal, Rupesh"]
[Result "0-1"]
[WhiteElo "2193"]
[BlackElo "2083"]
[Annotator "RC"]
[PlyCount "54"]
[EventDate "2022.??.??"]
[TimeControl "60"]

1. e4 {[%emt 0:00:03]} c5 {[%emt 0:00:21]} 2. Nf3 {[%emt 0:00:43]} d6 {[%emt 0:
00:00]} 3. d4 {[%emt 0:00:21]} cxd4 {[%emt 0:00:15]} 4. Nxd4 {[%emt 0:00:20]}
Nf6 {[%emt 0:00:00]} 5. Nc3 {[%emt 0:00:11]} a6 {[%emt 0:00:00]} 6. Bg5 {
[%emt 0:00:10]} e6 {[%emt 0:00:00]} 7. Qf3 {[%emt 0:00:10]} Nbd7 {[%emt 0:00:
00]} 8. O-O-O {[%emt 0:00:12]} Qc7 {[%emt 0:03:00]} 9. Qg3 {[%emt 0:00:09]} Be7
{[%emt 0:04:56]} 10. f4 {[%emt 0:01:23]} b5 {[%emt 0:08:30]} 11. a3 {[%emt 0:
00:00]} Bb7 {[%emt 0:00:23]} 12. Bd3 {[%emt 0:00:02]} h6 {[%emt 0:02:12]} 13.
Bxf6 {[%emt 0:07:39]} Bxf6 {[%emt 0:04:57]} 14. Bxb5 {[%emt 0:01:03]} axb5 {
[%emt 0:00:16]} 15. Ndxb5 {[%emt 0:00:03]} Qb6 {[%emt 0:09:43]} 16. Nxd6+ {
[%emt 0:03:26]} Kf8 {[%emt 0:07:15]} 17. e5 {[%emt 0:00:00]} Be7 {[%emt 0:00:
00]} 18. Nxf7 {[%emt 0:00:26]} Kxf7 {[%emt 0:04:20]} 19. Rxd7 {[%emt 0:00:12]}
Rhe8 {[%emt 0:07:44]} 20. f5 {[%emt 0:25:35]} exf5 {[%emt 0:02:43]} 21. e6+ {
[%emt 0:00:51]} Kg8 {[%emt 0:01:18]} 22. Qg6 {[%emt 0:02:03]} Kh8 {[%emt 0:00:
00]} 23. Re1 {[%emt 0:19:36]} Bc6 {[%emt 0:02:33]} 24. Rd3 {[%emt 0:02:00]}
Bg5+ {[%emt 0:04:53]} 25. Kb1 {[%emt 0:01:30]} Rxa3 {[%emt 0:10:34]} 26. Nd5 {
[%emt 0:12:19]} Ra1+ {[%emt 0:00:56]} 27. Kxa1 {[%emt 0:00:31]} Qa5+ {[%emt 0:
00:00]} 0-1

[Event "44th Chess Olympiad Open 2022"]
[Site "Chennai"]
[Date "2022.08.07"]
[Round "9.48"]
[White "Ramos Espinoza, Efren Andres"]
[Black "Lama, Milan"]
[Result "0-1"]
[WhiteElo "2158"]
[BlackElo "2024"]
[Annotator "RC"]
[PlyCount "116"]
[EventDate "2022.??.??"]
[TimeControl "60"]

1. d4 {[%emt 0:00:15]} d5 {[%emt 0:00:13]} 2. Nf3 {[%emt 0:00:07]} Nf6 {
[%emt 0:00:28]} 3. c4 {[%emt 0:00:26]} dxc4 {[%emt 0:00:26]} 4. g3 {[%emt 0:00:
00]} c5 {[%emt 0:05:29]} 5. Bg2 {[%emt 0:01:15]} Nc6 {[%emt 0:02:06]} 6. Qa4 {
[%emt 0:03:24]} cxd4 {[%emt 0:03:04]} 7. Nxd4 {[%emt 0:07:44]} Qxd4 {[%emt 0:
00:00]} 8. Bxc6+ {[%emt 0:00:15]} Bd7 {[%emt 0:10:20]} 9. Bxd7+ {[%emt 0:00:12]
} Qxd7 {[%emt 0:01:54]} 10. Qxc4 {[%emt 0:03:37]} Rc8 {[%emt 0:03:58]} 11. Qf4
{[%emt 0:00:08]} Nd5 {[%emt 0:06:55]} 12. Qd2 {[%emt 0:00:34]} Qh3 {[%emt 0:00:
00]} 13. Qxd5 {[%emt 0:03:40]} Rxc1+ {[%emt 0:00:10]} 14. Kd2 {[%emt 0:00:03]}
Rc6 {[%emt 0:00:27]} 15. Ke1 {[%emt 0:03:20]} e6 {[%emt 0:03:45]} 16. Qf3 {
[%emt 0:07:56]} Bb4+ {[%emt 0:01:17]} 17. Nc3 {[%emt 0:00:17]} O-O {[%emt 0:00:
00]} 18. Rd1 {[%emt 0:00:53]} Rfc8 {[%emt 0:01:09]} 19. Rd7 {[%emt 0:01:00]} f5
{[%emt 0:09:16]} 20. Qd3 {[%emt 0:43:53]} Ba5 {[%emt 0:20:29]} 21. Qd4 {
[%emt 0:04:23]} Qh6 {[%emt 0:05:26]} 22. Kf1 {[%emt 0:01:12]} Bb6 {[%emt 0:00:
00]} 23. Qf4 {[%emt 0:05:54]} Qf6 {[%emt 0:07:25]} 24. Kg2 {[%emt 0:00:25]} Rc4
{[%emt 0:02:30]} 25. Qf3 {[%emt 0:00:31]} R4c7 {[%emt 0:07:17]} 26. Rhd1 {
[%emt 0:00:33]} g5 {[%emt 0:01:25]} 27. Ne4 {[%emt 0:06:45]} Qg6 {[%emt 0:00:
00]} 28. Rd8+ Rxd8 {[%emt 0:00:41]} 29. Rxd8+ {[%emt 0:00:26]} Kg7 {[%emt 0:00:
00]} 30. Nd6 {[%emt 0:01:08]} Re7 {[%emt 0:00:39]} 31. Qc3+ {[%emt 0:00:49]} e5
{[%emt 0:00:26]} 32. Rg8+ {[%emt 0:02:54]} Kxg8 {[%emt 0:00:23]} 33. Qc8+ {
[%emt 0:00:18]} Kg7 {[%emt 0:01:06]} 34. Nxf5+ {[%emt 0:00:08]} Kf7 {[%emt 0:
00:00]} 35. Nxe7 {[%emt 0:00:25]} Qe4+ {[%emt 0:00:41]} 36. f3 {[%emt 0:00:39]}
Qxe2+ {[%emt 0:00:20]} 37. Kh3 {[%emt 0:00:04]} Kxe7 {[%emt 0:00:42]} 38. Qxb7+
{[%emt 0:00:11]} Kd6 {[%emt 0:00:31]} 39. Qb8+ {[%emt 0:00:27]} Ke6 {[%emt 0:
00:00]} 40. Qg8+ {[%emt 0:00:16]} Kd6 {[%emt 0:00:06]} 41. Qf8+ {[%emt 0:31:31]
} Kc6 {[%emt 0:00:41]} 42. Qc8+ {[%emt 0:00:00]} Kd6 {[%emt 0:03:43]} 43. Qf8+
{[%emt 0:00:00]} Kd5 {[%emt 0:00:52]} 44. b4 {[%emt 0:00:00]} Kd4 {[%emt 0:00:
00]} 45. Qf5 {[%emt 0:00:00]} h5 {[%emt 0:01:11]} 46. Qxg5 {[%emt 0:00:00]}
Qxf3 {[%emt 0:00:52]} 47. Qd2+ {[%emt 0:00:00]} Ke4 {[%emt 0:01:06]} 48. a4 {
[%emt 0:00:00]} Kf5 {[%emt 0:01:26]} 49. Qd7+ {[%emt 0:01:08]} Kg6 {[%emt 0:00:
00]} 50. Qe8+ {[%emt 0:01:04]} Qf7 {[%emt 0:00:23]} 51. Qc6+ {[%emt 0:02:18]}
Qf6 {[%emt 0:00:23]} 52. Qe8+ {[%emt 0:00:12]} Kh6 {[%emt 0:00:11]} 53. a5 {
[%emt 0:01:02]} Be3 {[%emt 0:02:29]} 54. Qb5 {[%emt 0:01:00]} Kg5 {[%emt 0:00:
00]} 55. Qe2 {[%emt 0:00:55]} Qf5+ {[%emt 0:00:48]} 56. Kg2 {[%emt 0:00:10]}
Qe4+ {[%emt 0:00:06]} 57. Qf3 {[%emt 0:00:17]} Qxf3+ {[%emt 0:00:26]} 58. Kxf3
{[%emt 0:00:07]} Bd2 {[%emt 0:00:18]} 0-1

[Event "44th Chess Olympiad Open 2022"]
[Site "Chennai"]
[Date "2022.08.07"]
[Round "9.48"]
[White "Bhandari, Kshitiz"]
[Black "Delgado Rosas, Alex Antonio"]
[Result "1/2-1/2"]
[WhiteElo "2071"]
[BlackElo "2149"]
[Annotator "NA"]
[PlyCount "89"]
[EventDate "2022.??.??"]
[TimeControl "60"]

1. Nf3 {[%emt 0:00:04]} g6 {[%emt 0:00:07]} 2. e4 {[%emt 0:00:05]} c5 {[%emt 0:
00:00]} 3. d4 {[%emt 0:00:27]} cxd4 {[%emt 0:00:11]} 4. Nxd4 {[%emt 0:00:03]}
Nf6 {[%emt 0:00:46]} 5. Nc3 {[%emt 0:00:16]} Nc6 {[%emt 0:00:16]} 6. Bc4 {
[%emt 0:04:12]} Bg7 {[%emt 0:00:29]} 7. Be3 {[%emt 0:00:07]} Qa5 {[%emt 0:00:
00]} 8. Nxc6 {[%emt 0:03:25]} dxc6 {[%emt 0:03:03]} 9. O-O {[%emt 0:06:16]} Ng4
{[%emt 0:12:31]} 10. Bf4 {[%emt 0:02:55]} g5 {[%emt 0:05:20]} 11. Bg3 {[%emt 0:
00:00]} h5 {[%emt 0:00:40]} 12. h4 {[%emt 0:00:08]} b5 {[%emt 0:07:43]} 13. Bb3
{[%emt 0:08:15]} gxh4 {[%emt 0:03:47]} 14. Bxh4 {[%emt 0:00:19]} b4 {[%emt 0:
00:00]} 15. Ne2 {[%emt 0:02:33]} Ba6 {[%emt 0:01:54]} 16. Ng3 {[%emt 0:07:27]}
Bxf1 {[%emt 0:04:11]} 17. Qxf1 {[%emt 0:05:49]} Qc7 {[%emt 0:02:41]} 18. Qc4 {
[%emt 0:00:51]} e6 {[%emt 0:05:47]} 19. Qxb4 {[%emt 0:13:18]} Bf6 {[%emt 0:00:
00]} 20. Bxf6 {[%emt 0:03:10]} Nxf6 {[%emt 0:00:02]} 21. Qc3 {[%emt 0:00:55]}
Rh6 {[%emt 0:03:04]} 22. e5 {[%emt 0:02:59]} h4 {[%emt 0:03:13]} 23. Ne2 {
[%emt 0:01:23]} Nd5 {[%emt 0:02:08]} 24. Bxd5 {[%emt 0:00:21]} exd5 {[%emt 0:
00:00]} 25. Nd4 {[%emt 0:00:09]} O-O-O {[%emt 0:01:16]} 26. Re1 {[%emt 0:01:31]
} Rg8 {[%emt 0:02:05]} 27. Kf1 {[%emt 0:01:56]} h3 {[%emt 0:01:29]} 28. gxh3 {
[%emt 0:00:02]} Rhg6 {[%emt 0:00:06]} 29. Re3 {[%emt 0:00:17]} c5 {[%emt 0:00:
00]} 30. Nb5 {[%emt 0:00:26]} d4 {[%emt 0:01:46]} 31. Qd3 {[%emt 0:00:15]} Qa5
{[%emt 0:01:45]} 32. Rg3 {[%emt 0:01:33]} Rxg3 {[%emt 0:00:17]} 33. fxg3 {
[%emt 0:00:01]} Qxa2 {[%emt 0:00:30]} 34. Nd6+ {[%emt 0:00:50]} Kd8 {[%emt 0:
00:00]} 35. Nb7+ {[%emt 0:00:58]} Kc7 {[%emt 0:00:44]} 36. Nxc5 {[%emt 0:00:12]
} Qxb2 {[%emt 0:00:40]} 37. Ne4 {[%emt 0:03:30]} Qc1+ {[%emt 0:01:30]} 38. Kg2
{[%emt 0:00:13]} Qe3 {[%emt 0:00:31]} 39. Qc4+ {[%emt 0:00:06]} Kb8 {[%emt 0:
00:00]} 40. Qb5+ {[%emt 0:02:57]} Ka8 {[%emt 0:00:35]} 41. Qc6+ {[%emt 0:32:16]
} Kb8 {[%emt 0:30:02]} 42. Qb5+ {[%emt 0:00:20]} Ka8 {[%emt 0:00:00]} 43. Qc6+
{[%emt 0:00:00]} Kb8 {[%emt 0:00:00]} 44. Qb5+ {[%emt 0:00:00]} Ka8 {[%emt 0:
00:00]} 45. Qc6+ {[%emt 0:00:00]} 1/2-1/2

[Event "44th Chess Olympiad Open 2022"]
[Site "Chennai"]
[Date "2022.08.07"]
[Round "9.49"]
[White "Liyanage, Ranindu Dilshan"]
[Black "Salih, Akar Ali Salih"]
[Result "1-0"]
[WhiteElo "2286"]
[BlackElo "2243"]
[Annotator "RC"]
[PlyCount "89"]
[EventDate "2022.??.??"]
[TimeControl "60"]

1. e4 {[%emt 0:00:09]} c5 {[%emt 0:00:14]} 2. Nc3 {[%emt 0:00:12]} Nc6 {
[%emt 0:01:35]} 3. Bb5 {[%emt 0:00:18]} Nd4 {[%emt 0:00:42]} 4. Bc4 {[%emt 0:
00:00]} g6 {[%emt 0:01:00]} 5. Nge2 {[%emt 0:01:08]} Bg7 {[%emt 0:00:16]} 6.
Nxd4 {[%emt 0:00:59]} cxd4 {[%emt 0:00:34]} 7. Qf3 {[%emt 0:00:12]} Nh6 {
[%emt 0:14:52]} 8. Ne2 {[%emt 0:01:15]} O-O {[%emt 0:04:00]} 9. d3 {[%emt 0:00:
00]} d6 {[%emt 0:12:00]} 10. Nxd4 {[%emt 0:16:15]} Ng4 {[%emt 0:01:21]} 11. c3
{[%emt 0:01:07]} Ne5 {[%emt 0:02:27]} 12. Qe2 {[%emt 0:00:17]} Nxc4 {[%emt 0:
00:00]} 13. dxc4 {[%emt 0:00:06]} Bd7 {[%emt 0:05:33]} 14. Be3 {[%emt 0:01:38]}
a6 {[%emt 0:01:03]} 15. O-O {[%emt 0:07:04]} Qc7 {[%emt 0:01:16]} 16. Rfd1 {
[%emt 0:04:46]} Rac8 {[%emt 0:09:12]} 17. b3 {[%emt 0:00:54]} Rfe8 {[%emt 0:00:
00]} 18. Qd2 {[%emt 0:02:43]} b5 {[%emt 0:02:01]} 19. cxb5 {[%emt 0:01:45]}
axb5 {[%emt 0:00:05]} 20. Rac1 {[%emt 0:00:29]} Qb7 {[%emt 0:02:33]} 21. f3 {
[%emt 0:00:20]} Rc7 {[%emt 0:03:36]} 22. Ne2 {[%emt 0:03:33]} Rec8 {[%emt 0:00:
00]} 23. Bd4 {[%emt 0:00:51]} e5 {[%emt 0:00:17]} 24. Be3 {[%emt 0:00:32]} Bf8
{[%emt 0:00:06]} 25. Ng3 {[%emt 0:08:59]} Be6 {[%emt 0:02:02]} 26. f4 {[%emt 0:
00:00]} exf4 {[%emt 0:07:05]} 27. Bxf4 {[%emt 0:00:06]} Rd7 {[%emt 0:00:04]}
28. Be3 {[%emt 0:01:28]} d5 {[%emt 0:00:59]} 29. e5 {[%emt 0:00:33]} Ba3 {
[%emt 0:08:47]} 30. Rc2 {[%emt 0:02:23]} Qc7 {[%emt 0:04:19]} 31. Bd4 {[%emt 0:
00:00]} Qd8 {[%emt 0:02:14]} 32. b4 {[%emt 0:03:14]} Rdc7 {[%emt 0:02:39]} 33.
Rb1 {[%emt 0:02:19]} Rc4 {[%emt 0:01:56]} 34. Rb3 {[%emt 0:16:27]} Ra8 {
[%emt 0:00:07]} 35. Qd1 {[%emt 0:05:08]} Qg5 {[%emt 0:01:36]} 36. Rd2 {[%emt 0:
00:00]} h5 {[%emt 0:03:55]} 37. Nf1 {[%emt 0:01:50]} Bf5 {[%emt 0:01:38]} 38.
Ne3 {[%emt 0:00:29]} Be4 {[%emt 0:00:07]} 39. Nc2 {[%emt 0:01:20]} Bc1 {
[%emt 0:00:58]} 40. Qxc1 {[%emt 0:01:09]} Rxa2 {[%emt 0:00:54]} 41. Be3 {
[%emt 0:08:48]} Qg4 {[%emt 0:04:14]} 42. Ne1 {[%emt 0:02:52]} Rxd2 {[%emt 0:00:
00]} 43. Qxd2 {[%emt 0:00:18]} Rc6 {[%emt 0:00:19]} 44. Ra3 {[%emt 0:01:00]} h4
{[%emt 0:00:40]} 45. h3 {[%emt 0:00:37]} 1-0

[Event "44th Chess Olympiad Open 2022"]
[Site "Chennai"]
[Date "2022.08.07"]
[Round "9.49"]
[White "Abdulwahhab, Ahmed Abdulsattar A"]
[Black "Alahakoon, Isuru"]
[Result "0-1"]
[WhiteElo "2251"]
[BlackElo "2000"]
[Annotator "RC"]
[PlyCount "98"]
[EventDate "2022.??.??"]
[TimeControl "60"]

1. e4 {[%emt 0:00:04]} c5 {[%emt 0:00:27]} 2. Nf3 {[%emt 0:00:20]} Nc6 {
[%emt 0:00:09]} 3. Nc3 {[%emt 0:01:02]} g6 {[%emt 0:00:35]} 4. d4 {[%emt 0:00:
00]} cxd4 {[%emt 0:00:08]} 5. Nxd4 {[%emt 0:00:17]} Bg7 {[%emt 0:00:11]} 6. Be3
{[%emt 0:00:34]} Nf6 {[%emt 0:00:09]} 7. Bc4 {[%emt 0:01:33]} O-O {[%emt 0:00:
00]} 8. Bb3 {[%emt 0:00:18]} d6 {[%emt 0:07:28]} 9. f3 {[%emt 0:02:05]} Bd7 {
[%emt 0:00:28]} 10. Qd2 {[%emt 0:00:20]} Nxd4 {[%emt 0:03:27]} 11. Bxd4 {
[%emt 0:00:19]} b5 {[%emt 0:00:04]} 12. h4 {[%emt 0:04:56]} h5 {[%emt 0:27:03]}
13. Nd5 {[%emt 0:07:39]} e6 {[%emt 0:10:39]} 14. Nxf6+ {[%emt 0:08:10]} Bxf6 {
[%emt 0:00:10]} 15. O-O-O {[%emt 0:00:11]} a5 {[%emt 0:07:26]} 16. a3 {[%emt 0:
00:00]} b4 {[%emt 0:16:44]} 17. Bxf6 {[%emt 0:13:47]} Qxf6 {[%emt 0:00:05]} 18.
a4 {[%emt 0:00:18]} Rfd8 {[%emt 0:06:50]} 19. Qe3 {[%emt 0:02:40]} Bc6 {
[%emt 0:02:22]} 20. Kb1 {[%emt 0:02:43]} Qe5 {[%emt 0:01:34]} 21. Rd4 {[%emt 0:
00:00]} Rd7 {[%emt 0:05:59]} 22. Rhd1 {[%emt 0:02:32]} Rad8 {[%emt 0:01:00]}
23. R1d3 {[%emt 0:07:02]} Qg3 {[%emt 0:02:21]} 24. Qg5 {[%emt 0:04:26]} Qxg5 {
[%emt 0:01:19]} 25. hxg5 {[%emt 0:00:07]} e5 {[%emt 0:01:17]} 26. Rc4 {[%emt 0:
00:00]} Bb7 {[%emt 0:00:29]} 27. Rd2 {[%emt 0:01:26]} Kf8 {[%emt 0:01:58]} 28.
c3 {[%emt 0:00:44]} d5 {[%emt 0:00:59]} 29. Rc5 {[%emt 0:03:50]} dxe4 {[%emt 0:
00:00]} 30. Rxd7 {[%emt 0:00:48]} Rxd7 {[%emt 0:00:03]} 31. Rxa5 {[%emt 0:00:
00]} exf3 {[%emt 0:01:28]} 32. gxf3 {[%emt 0:00:12]} h4 {[%emt 0:01:34]} 33.
Rxe5 {[%emt 0:00:14]} Re7 {[%emt 0:00:34]} 34. Rxe7 {[%emt 0:01:15]} Kxe7 {
[%emt 0:00:13]} 35. Bc4 {[%emt 0:00:15]} h3 {[%emt 0:00:47]} 36. Bf1 {[%emt 0:
00:00]} h2 {[%emt 0:00:26]} 37. Bg2 {[%emt 0:00:10]} f6 {[%emt 0:00:36]} 38.
gxf6+ {[%emt 0:03:10]} Kxf6 {[%emt 0:00:12]} 39. Kc2 {[%emt 0:00:09]} g5 {
[%emt 0:00:14]} 40. Kd3 {[%emt 0:01:16]} g4 {[%emt 0:00:59]} 41. Ke3 {[%emt 0:
00:00]} gxf3 {[%emt 0:08:49]} 42. Bh1 {[%emt 0:00:00]} b3 {[%emt 0:05:03]} 43.
a5 {[%emt 0:00:00]} Ke5 {[%emt 0:03:13]} 44. a6 {[%emt 0:00:00]} Ba8 {[%emt 0:
00:00]} 45. a7 {[%emt 0:00:00]} f2 {[%emt 0:05:08]} 46. Kxf2 {[%emt 0:00:00]}
Bxh1 {[%emt 0:00:08]} 47. Kg3 {[%emt 0:00:00]} Ba8 {[%emt 0:00:06]} 48. Kxh2 {
[%emt 0:00:00]} Ke4 {[%emt 0:00:03]} 49. Kg3 {[%emt 0:00:00]} Kd3 {[%emt 0:00:
00]} 0-1

[Event "44th Chess Olympiad Open 2022"]
[Site "Chennai"]
[Date "2022.08.07"]
[Round "9.49"]
[White "Ahmed, Ali Layth Ahmed"]
[Black "De Silva, L M S T.."]
[Result "0-1"]
[WhiteElo "2249"]
[BlackElo "2212"]
[Annotator "RC"]
[PlyCount "88"]
[EventDate "2022.??.??"]
[TimeControl "60"]

1. d4 {[%emt 0:00:23]} Nf6 {[%emt 0:00:11]} 2. Nf3 {[%emt 0:00:07]} e6 {
[%emt 0:00:15]} 3. c4 {[%emt 0:00:42]} d5 {[%emt 0:00:28]} 4. e3 {[%emt 0:00:
00]} Be7 {[%emt 0:00:33]} 5. b3 {[%emt 0:00:47]} O-O {[%emt 0:01:10]} 6. Bd3 {
[%emt 0:00:19]} c5 {[%emt 0:00:43]} 7. O-O {[%emt 0:01:07]} cxd4 {[%emt 0:00:
00]} 8. exd4 {[%emt 0:00:06]} Nc6 {[%emt 0:00:53]} 9. Nc3 {[%emt 0:02:50]} b6 {
[%emt 0:01:27]} 10. Bb2 {[%emt 0:04:07]} Bb7 {[%emt 0:00:18]} 11. Rc1 {[%emt 0:
00:00]} Rc8 {[%emt 0:02:50]} 12. a3 {[%emt 0:16:59]} Re8 {[%emt 0:03:47]} 13.
Ne2 {[%emt 0:04:13]} Bf8 {[%emt 0:04:28]} 14. Ng3 {[%emt 0:07:05]} g6 {[%emt 0:
00:00]} 15. Re1 {[%emt 0:03:04]} Bh6 {[%emt 0:03:42]} 16. Rc2 {[%emt 0:02:38]}
dxc4 {[%emt 0:17:01]} 17. bxc4 {[%emt 0:01:06]} Bg7 {[%emt 0:02:05]} 18. h4 {
[%emt 0:09:31]} Qd6 {[%emt 0:06:27]} 19. c5 {[%emt 0:06:15]} Qe7 {[%emt 0:00:
00]} 20. h5 {[%emt 0:02:24]} Red8 {[%emt 0:02:31]} 21. hxg6 {[%emt 0:01:46]}
hxg6 {[%emt 0:00:36]} 22. cxb6 {[%emt 0:07:24]} axb6 {[%emt 0:00:43]} 23. Rce2
{[%emt 0:00:32]} Qd6 {[%emt 0:03:42]} 24. Bxg6 {[%emt 0:03:20]} fxg6 {[%emt 0:
00:00]} 25. Rxe6 {[%emt 0:03:10]} Qd5 {[%emt 0:02:10]} 26. Qb1 {[%emt 0:00:06]}
Re8 {[%emt 0:13:29]} 27. Rxe8+ {[%emt 0:07:42]} Rxe8 {[%emt 0:00:43]} 28. Rxe8+
{[%emt 0:00:09]} Nxe8 {[%emt 0:00:05]} 29. Qxg6 {[%emt 0:00:03]} Qf7 {[%emt 0:
00:00]} 30. Qg5 {[%emt 0:03:56]} Qe7 {[%emt 0:08:45]} 31. Qb5 {[%emt 0:01:57]}
Nd6 {[%emt 0:02:10]} 32. Qb3+ {[%emt 0:03:00]} Qf7 {[%emt 0:00:43]} 33. d5 {
[%emt 0:00:19]} Na5 {[%emt 0:04:43]} 34. Qb4 {[%emt 0:01:21]} Nac4 {[%emt 0:00:
00]} 35. Bxg7 {[%emt 0:00:45]} Qxg7 {[%emt 0:00:11]} 36. Qe1 {[%emt 0:03:09]}
Bxd5 {[%emt 0:00:22]} 37. Nh4 {[%emt 0:00:57]} Qf6 {[%emt 0:00:30]} 38. Qd1 {
[%emt 0:00:48]} Be6 {[%emt 0:02:28]} 39. Qe2 {[%emt 0:01:14]} Bd7 {[%emt 0:00:
00]} 40. Qh5 {[%emt 0:00:39]} Ne5 {[%emt 0:00:14]} 41. Qd1 {[%emt 0:02:08]}
Ndf7 {[%emt 0:04:23]} 42. Nf3 {[%emt 0:11:31]} Bg4 {[%emt 0:02:11]} 43. Ne4 {
[%emt 0:03:02]} Qf4 {[%emt 0:04:05]} 44. Neg5 {[%emt 0:02:41]} Qxg5 {[%emt 0:
00:00]} 0-1

[Event "44th Chess Olympiad Open 2022"]
[Site "Chennai"]
[Date "2022.08.07"]
[Round "9.49"]
[White "Nabil Nazar, Mohamed"]
[Black "Rabeea, Sabah Nori"]
[Result "1-0"]
[WhiteElo "1845"]
[BlackElo "2122"]
[Annotator "NA RC"]
[PlyCount "43"]
[EventDate "2022.??.??"]
[TimeControl "60"]

1. d4 {[%emt 0:00:05]} d5 {[%emt 0:00:18]} 2. Bf4 {[%emt 0:00:04]} Nf6 {
[%emt 0:00:42]} 3. e3 {[%emt 0:00:24]} c5 {[%emt 0:01:53]} 4. Nf3 {[%emt 0:00:
00]} Nc6 {[%emt 0:00:09]} 5. Nbd2 {[%emt 0:00:35]} Qb6 {[%emt 0:03:16]} 6. dxc5
{[%emt 0:00:22]} Qxb2 {[%emt 0:09:07]} 7. Rb1 {[%emt 0:00:04]} Qa3 {[%emt 0:00:
00]} 8. Bb5 {[%emt 0:01:18]} Bg4 {[%emt 0:09:07]} 9. O-O {[%emt 0:02:10]} e6 {
[%emt 0:09:34]} 10. c4 {[%emt 0:09:07]} Be7 {[%emt 0:09:02]} 11. Qa4 {[%emt 0:
00:00]} Qxa4 {[%emt 0:15:25]} 12. Bxa4 {[%emt 0:00:01]} Kf8 {[%emt 0:09:19]}
13. Rxb7 {[%emt 0:02:18]} Na5 {[%emt 0:02:04]} 14. c6 {[%emt 0:09:34]} Bxf3 {
[%emt 0:08:58]} 15. Nxf3 {[%emt 0:00:36]} Ne4 {[%emt 0:05:37]} 16. Rfb1 {
[%emt 0:00:55]} f6 {[%emt 0:00:22]} 17. cxd5 {[%emt 0:01:43]} exd5 {[%emt 0:00:
00]} 18. Rb8+ {[%emt 0:00:35]} Kf7 {[%emt 0:00:12]} 19. c7 {[%emt 0:03:27]} Bd6
{[%emt 0:09:24]} 20. Bxd6 {[%emt 0:00:20]} Nxd6 {[%emt 0:00:06]} 21. Rxa8 {
[%emt 0:00:13]} Rxa8 {[%emt 0:00:09]} 22. Rb8 {[%emt 0:00:12]} 1-0